Cogmind - Beta 10.2 *** ADVENTURER MODE // 2021.03.30 @ 21:56:15 Player: RomanTheEvil Result: Self-destructed Performance ------------- Evolutions (3) 1500 Regions Visited (4) 800 Robots Destroyed (16) 80 Value Destroyed (212) 212 Prototype IDs (5) 100 Alien Tech Used (0) 0 Bonus (0) 0 TOTAL SCORE: 2692 Bonus ------- None Cogmind --------- Core Integrity 597/700 Matter 241/300 Energy 450/450 System Corruption 0% Temperature Cool (208) Movement Flying (114) Ox1 Location -7/Factory Parts ------- > --- POWER (2) -------- Nuclear Core Heavy Deuterium Engine > --- PROPULSION (4) --- VTOL Module VTOL Module VTOL Module > --- UTILITY (5) ------ Signal Interpreter System Shield System Backup Module > --- WEAPON (2) ------- Advanced Beam Cannon > --- INVENTORY (4) ---- Cooled Ion Engine Grenade Launcher Datajack Peak State ------------ > --- POWER ------------ Nuclear Core Heavy Deuterium Engine > --- PROPULSION ------- VTOL Module VTOL Module Cesium-ion Thruster Xenon Bombardment Thruster > --- UTILITY ---------- Signal Interpreter System Shield > --- WEAPON ----------- Advanced Beam Cannon Mining Laser > --- INVENTORY -------- Cooled Ion Engine VTOL Module Grenade Launcher Datajack [Rating: 27] Favorites ----------- Power Light Ion Engine Engine Light Ion Engine Power Core Nuclear Core Propulsion VTOL Module Leg Aluminum Leg Hover Unit Hover Unit Flight Unit VTOL Module Utility Signal Interpreter Device Weight Redist. System Processor Signal Interpreter Hackware System Shield Weapon Mining Laser Energy Gun EM Pulse Gun Energy Cannon Advanced Beam Cannon Ballistic Gun Light Assault Rifle Special Weapon Mining Laser Build | -11 -10 -9 -8 -7 ------- Run | Scr Mat Mat Mat Fac Slots Evolved 6 | . . 2 2 2 Power 1 | . . . 1 . Propulsion 2 | . . 2 . . Utility 3 | . . . 1 2 Weapon . | . . . . . Parts Attached 29 | 4 13 4 3 5 Power 6 | 1 1 1 1 2 Engine 5 | 1 1 1 1 1 Core 1 | . . . . 1 Reactor . | . . . . . Propulsion 11 | 2 4 2 1 2 Treads . | . . . . . Leg 2 | 2 . . . . Wheel . | . . . . . Hover 1 | . 1 . . . Flight 8 | . 3 2 1 2 Utility 5 | . 3 . 1 1 Device 3 | . 2 . . 1 Storage . | . . . . . Processor 1 | . 1 . . . Hackware 1 | . . . 1 . Protection . | . . . . . Artifact . | . . . . . Weapon 7 | 1 5 1 . . Energy Gun 4 | . 4 . . . Energy Cannon 1 | . . 1 . . Ballistic Gun 1 | 1 . . . . Ballistic Cannon . | . . . . . Launcher . | . . . . . Special Weapon 1 | . 1 . . . Impact Weapon . | . . . . . Slashing Weapon . | . . . . . Piercing Weapon . | . . . . . Special Melee Weapon . | . . . . . Unidentified Prototypes 3 | . . 2 . 1 Parts Lost 5 | . 1 . 1 3 Power . | . . . . . Propulsion 2 | . . . . 2 Utility 2 | . 1 . 1 . Weapon 1 | . . . . 1 Highest Loss Streak 2 | . 1 . 1 2 Average Slot Usage (%) 77 | . 68 100 86 71 Engine 13 | . 14 11 18 8 Core 1 | . . . . 5 Leg 7 | . 15 . . . Flight 22 | . 8 44 36 29 Device 3 | . 3 11 . . Processor 7 | . 6 11 9 7 Hackware 2 | . . . 4 7 Energy Gun 4 | . 5 10 . . Energy Cannon 2 | . . . 9 7 Ballistic Gun 4 | . 10 . . . Special Weapon 5 | . 3 11 9 3 Naked Turns . | . . . . . Heaviest Build 23 | 6 8 13 16 23 Greatest Support 23 | 20 20 15 21 23 Greatest Overweight (x) . | . . . . . Average Overweight (x) . | . . . . . Largest Inventory Capacity 4 | 4 4 4 4 4 Average Capacity 4 | 4 4 4 4 4 Most Carried 4 | 4 4 4 3 4 Average Carried 2 | 1 2 3 2 3 Final Capacity 4 | 4 4 4 4 4 Final Carried 4 | 1 4 3 3 3 Class Distribution -------------------- 66% | Mutant 25% | Hacker-Sprinter 7% | Sprinter Dominant Class ---------------- Mutant | -10/Materials Mutant | -9/Materials Hacker-Sprinter | -8/Materials Hacker-Sprinter | -7/Factory Resources | -11 -10 -9 -8 -7 ----------- Run | Scr Mat Mat Mat Fac Matter Collected 417 | 240 90 . 57 30 Remotely . | . . . . . Salvage Created 370 | . 187 47 57 79 Parts 32 | . 15 3 8 6 Haulers Intercepted 2 | . 1 1 . . Recyclers Shooed . | . . . . . Parts Field Recycled . | . . . . . Retrieved Matter . | . . . . . Parts Self-Destructed . | . . . . . Prevented . | . . . . . Kills | -11 -10 -9 -8 -7 ------- Run | Scr Mat Mat Mat Fac Combat Hostiles Destroyed 12 | . 5 . 4 3 Guns 5 | . 5 . . . Cannons 7 | . . . 4 3 Classes Destroyed 4 | . 4 . . . Worker 1 | . 1 . . . Hauler 2 | . 1 1 . . Watcher 1 | . 1 . . . Swarmer 12 | . 5 . 4 3 Best Kill Streak 4 | . 4 1 4 3 Combat Bots Only 4 | . 3 . 4 3 Max Kills in Single Turn 1 | . 1 1 1 1 Gunslinging . | . . . . . Exploded . | . . . . . Melee . | . . . . . Uniques/NPCs Destroyed . | . . . . . Combat | -11 -10 -9 -8 -7 -------- Run | Scr Mat Mat Mat Fac Damage Taken 594 | . 92 50 119 333 Core 168 | . 22 17 26 103 Absorbed by Shields . | . . . . . Core Remaining (%) 95 | 100 91 95 95 . Volleys Fired 43 | . 18 2 12 11 Largest 2 | . 2 2 1 1 Hottest 140 | . 60 140 100 68 Shots Fired 55 | . 29 3 12 11 Gun 31 | . 29 2 . . Cannon 16 | . . . 5 11 Launcher . | . . . . . Special 8 | . . 1 7 . Kinetic 11 | . 11 . . . Thermal 24 | . . 1 12 11 Explosive . | . . . . . Electromagnetic 20 | . 18 2 . . Robot Hit Streak 13 | . 12 11 13 4 Robot Miss Streak 2 | . 1 . 1 2 Penetration Max . | . . . . . Secondary Targets . | . . . . . Shots Hit Robots 38 | . 26 2 4 6 Core Hits 20 | . 12 1 4 3 Critical Hits 1 | . . . . 1 Critical Kills . | . . . . . Critical Parts Destroyed 1 | . . . . 1 Melee Attacks . | . . . . . Impact . | . . . . . Slashing . | . . . . . Piercing . | . . . . . Sneak Attacks . | . . . . . Combat Hostiles . | . . . . . Follow-up Attacks . | . . . . . Damage Inflicted 621 | . 346 28 82 165 Guns 328 | . 300 28 . . Cannons 247 | . . . 82 165 Explosions 46 | . 46 . . . Melee . | . . . . . Ramming . | . . . . . Kinetic 91 | . 91 . . . Thermal 293 | . 46 . 82 165 Explosive . | . . . . . Electromagnetic 237 | . 209 28 . . Impact . | . . . . . Slashing . | . . . . . Piercing . | . . . . . Highest Corruption . | . . . . . Average Corruption . | . . . . . Corruption Purged . | . . . . . Overload Shots . | . . . . . Overflow Damage 25 | . 25 . . . Projectiles . | . . . . . Explosions 25 | . 25 . . . Melee . | . . . . . Knockbacks . | . . . . . Impact . | . . . . . Kinetic . | . . . . . Secondary . | . . . . . Self-Inflicted Damage 29 | . 29 . . . Shots 1 | . 1 . . . Rammed . | . . . . . Targets Rammed . | . . . . . Kicked . | . . . . . Crushed . | . . . . . Highest Temperature 337 | . 60 41 166 337 Average Temperature 126 | . 24 22 80 229 Received Heat Transfer 60 | . 6 36 9 9 Effects 1 | . . . . 1 Shutdowns 1 | . . . . 1 Siege Activations . | . . . . . Robots Corrupted . | . . . . . Combat Hostiles . | . . . . . Parts Fried . | . . . . . Impact Corruptions . | . . . . . Robots Melted . | . . . . . Combat Hostiles . | . . . . . Parts Melted 1 | . . . 1 . Heat Transferred 494 | . 50 . 148 296 Parts Sabotaged . | . . . . . Parts Stolen . | . . . . . Parts Stripped . | . . . . . Power Chain Reactions 1 | . 1 . . . Missiles Intercepted . | . . . . . Alert | -11 -10 -9 -8 -7 ------- Run | Scr Mat Mat Mat Fac Peak Influence 337 | . 256 337 309 275 Initial 121 | . . 97 121 120 Average 130 | . 89 181 224 167 Maximum Alert Level 1 | . 1 1 1 1 Low Security (%) 72 | 100 87 58 33 67 Level 1 27 | . 12 41 66 32 Level 2 . | . . . . . Level 3 . | . . . . . Level 4 . | . . . . . Level 5 . | . . . . . High Security . | . . . . . Max Security . | . . . . . Squads Dispatched 8 | . 1 4 1 2 Investigation 5 | . 1 2 1 1 Extermination . | . . . . . Reinforcement 3 | . . 2 . 1 Assault . | . . . . . Garrison . | . . . . . Intercept . | . . . . . Construction Impeded . | . . . . . Haulers Reinforced . | . . . . . Stealth | -11 -10 -9 -8 -7 --------- Run | Scr Mat Mat Mat Fac Distress Signals 3 | . . . . 3 Communications Jammed . | . . . . . Distress Signals . | . . . . . Times Spotted 54 | . 13 13 8 20 Peak Tracking Total 11 | . 6 10 7 11 Tactical Retreats 8 | . 2 3 1 2 Traps | -11 -10 -9 -8 -7 ------- Run | Scr Mat Mat Mat Fac Traps Triggered 2 | . 1 1 . . Indirectly . | . . . . . Trap Hack Attempts . | . . . . . Triggered . | . . . . . Disarmed . | . . . . . Reprogrammed . | . . . . . Reused . | . . . . . Traps Extracted . | . . . . . Installed . | . . . . . Triggered . | . . . . . Machines | -11 -10 -9 -8 -7 ---------- Run | Scr Mat Mat Mat Fac Machines Disabled 2 | . 2 . . . Max in Single Turn 1 | . 1 . . . Machines Sabotaged . | . . . . . Garrisons Compromised . | . . . . . Overloaded Fab Kills . | . . . . . Fab Network Shutdowns . | . . . . . Hacking | -11 -10 -9 -8 -7 --------- Run | Scr Mat Mat Mat Fac Machines Accessed 11 | . 5 2 1 3 Terminals 11 | . 5 2 1 3 Fabricators . | . . . . . Repair Stations . | . . . . . Recycling Units . | . . . . . Scanalyzers . | . . . . . Garrison Access . | . . . . . Total Hacks 37 | . 19 4 4 10 Successful 16 | . 10 2 1 3 Failed 21 | . 9 2 3 7 Catastrophic 2 | . . 1 . 1 Database Lockouts . | . . . . . Manual 9 | . 6 3 . . Terminals 37 | . 19 4 4 10 Fabricators . | . . . . . Repair Stations . | . . . . . Recycling Units . | . . . . . Scanalyzers . | . . . . . Garrison Access . | . . . . . Terminal Hacks 16 | . 10 2 1 3 Record 1 | . . . . 1 Prototype ID Bank 1 | . 1 . . . Level Access Points 3 | . 1 1 1 . Branch Access Points 1 | . . . . 1 Emergency Access Points 1 | . . 1 . . Machine Index 1 | . 1 . . . Terminal Index 1 | . 1 . . . Locate Traps 1 | . 1 . . . Dispatch Records 1 | . 1 . . . Transport Status 1 | . 1 . . . Reinforcement Status 1 | . 1 . . . Assault Status 1 | . 1 . . . Recall Reinforcements 1 | . . . . 1 Hauler Manifests 1 | . 1 . . . Fabricator Hacks . | . . . . . Repair Station Hacks . | . . . . . Recycling Unit Hacks . | . . . . . Scanalyzer . | . . . . . Garrison Access Hacks . | . . . . . Unauthorized Hacks . | . . . . . Terminals . | . . . . . Fabricators . | . . . . . Repair Stations . | . . . . . Recycling Units . | . . . . . Scanalyzers . | . . . . . Garrison Access . | . . . . . Data Cores Recovered . | . . . . . Used . | . . . . . Hacking Detections 9 | . 4 1 1 3 Full Trace Events 3 | . . 1 1 1 Feedback Events . | . . . . . Feedback Blocked . | . . . . . Robot Schematics Acquired . | . . . . . Robots Built . | . . . . . Matter . | . . . . . Time . | . . . . . Total Robot Build Rating . | . . . . . Part Schematics Acquired . | . . . . . Parts Built . | . . . . . Matter . | . . . . . Time . | . . . . . Total Part Build Rating . | . . . . . Parts Repaired . | . . . . . Time . | . . . . . Parts Recycled . | . . . . . Recycled Matter . | . . . . . Retrieved Matter . | . . . . . Retrieved Components . | . . . . . Parts Scanalyzed . | . . . . . Part Schematics Acquired . | . . . . . Parts Damaged . | . . . . . Bothacking | -11 -10 -9 -8 -7 ------------ Run | Scr Mat Mat Mat Fac Used RIF Installer . | . . . . . Robots Hacked . | . . . . . Non-combat . | . . . . . Combat . | . . . . . Robot Hacks Applied . | . . . . . Relay Couplers Released . | . . . . . Robots Rewired . | . . . . . Allies Hacked . | . . . . . Hacks Repelled . | . . . . . Allies | -11 -10 -9 -8 -7 -------- Run | Scr Mat Mat Mat Fac Total Allies . | . . . . . Largest Group . | . . . . . Highest-Rated Group . | . . . . . Highest-Rated Ally . | . . . . . Total Orders . | . . . . . Ally Attacks . | . . . . . Total Damage . | . . . . . Kills . | . . . . . Allies Corrupted . | . . . . . Allies Melted . | . . . . . Intel | -11 -10 -9 -8 -7 ------- Run | Scr Mat Mat Mat Fac Robot Analysis Total . | . . . . . Derelict Logs Recovered . | . . . . . Drone Launches . | . . . . . Drone Recoveries . | . . . . . Exploration | -11 -10 -9 -8 -7 ------------- Run | Scr Mat Mat Mat Fac Turns Passed 774 | 54 348 124 107 141 Spaces Moved 1328 | 48 435 296 204 345 Core 16 | 16 . . . . Treads . | . . . . . Legs 152 | 32 120 . . . Wheels . | . . . . . Hover . | . . . . . Flight 1160 | . 315 296 204 345 Fastest Speed 31 | 50 37 34 31 31 Average Speed 44 | 96 61 35 31 31 Slowest Speed 120 | 120 120 37 31 31 Overloaded Moves . | . . . . . Propulsion Burnouts . | . . . . . Robots Hopped 4 | . 2 1 1 . Cave-ins Triggered . | . . . . . Exploration Rate (%) 28 | 3 62 40 24 13 Regions Visited 4 Branch Regions . Pre-discovered Areas . | . . . . . Known Exits Taken 3 | . 1 1 1 . Unknown Exits Taken 1 | 1 . . . . Scrap Searched . | . . . . . Spaces Dug 7 | . . . 7 . Terrain Destroyed 8 | . . 1 7 . Melee . | . . . . . Projectile 8 | . . 1 7 . AOE . | . . . . . Terrain Rammed . | . . . . . Walls Destroyed . | . . . . . Machines Disabled . | . . . . . Actions | -11 -10 -9 -8 -7 --------- Run | Scr Mat Mat Mat Fac Total 1441 | 58 488 309 219 367 Wait 3 | . 1 2 . . Move 1316 | 47 430 293 201 345 Hop 4 | . 2 1 1 . Pick Up 30 | 6 14 4 2 4 Fast Attach . | . . . . . Attach 18 | 4 8 2 2 2 Detach 3 | . 3 . . . Swap 11 | . 5 2 1 3 Drop 13 | 1 7 3 . 2 Fire 43 | . 18 2 12 11 Melee . | . . . . . Ram . | . . . . . Kick . | . . . . . Crush . | . . . . . Escape Stasis . | . . . . . Rewire . | . . . . . Trap . | . . . . . Miscellaneous . | . . . . . Route ------- -11/Scrapyard -10/Materials (discovered 4 exits: *Mat x3 / [*Min]) -9/Materials (discovered 4 exits: *Mat x3 / *Min) -8/Materials (discovered 3 exits: *Fac x3) -7/Factory (discovered 2 exits: Low x2) History --------- Turn | Location | Event 4 | -11/Scrapyard | Discovered new exit (range 15) 55 | -11/Scrapyard | Entered Materials 166 | -10/Materials | Identified exit to Materials 255 | -10/Materials | Discovered new exit (range 16) 372 | -10/Materials | Build established: Mutant 403 | -10/Materials | Entered another Materials area 403 | -9/Materials | Evolved 2 slots: Propulsion x2 485 | -9/Materials | Discovered new exit (range 8) 487 | -9/Materials | Identified exit to Mines 499 | -9/Materials | Identified exit to Materials 527 | -9/Materials | Entered another Materials area 527 | -8/Materials | Evolved 2 slots: Power x1, Utility x1 533 | -8/Materials | Identified exit to Factory 634 | -8/Materials | Entered Factory 634 | -7/Factory | Evolved 2 slots: Utility x2 692 | -7/Factory | Identified exit to Lower Caves 775 | -7/Factory | Self-destructed Last Messages --------------- 00717_ S-27 Virus destroyed. 00718_ Cesium-ion Thruster destroyed. 00719_ S-27 Virus destroyed. 00722_ Acquired 30 matter. 00723_ W-25 Informer distress signal alerts nearby ally. 00724_ R-06 Scavenger collects Autogun. 00727_ Connecting with Terminal... >>Recall(Reinforcements) Establishing remote squad link... No tasked reinforcement squads found. 00729_ O-16 Technician distress signal alerts nearby ally. 00729_ O-16 Technician: "IFF HANDSHAKE FAILED. SECURING TERMINAL." 00733_ O-16 Technician uses terminal to summon reinforcements. 00733_ ALERT: Hostiles spotted, dispatching reinforcements to Terminal F013. 00733_ O-16 Technician locks terminal. 00750_ Power failure, Nuclear Core shutdown. 00773_ Acquired System Backup Module. 00774_ Critical hit. 00774_ Xenon Bombardment Thruster destroyed. Map ----- +----------------------------------------------------+ | | | | | | | | | | | | | | | | | | | | | | | ????###################????????????????????????#?? | | ????# *[ #???????????????????????# | | ????# /[ #???????????????????????# | | ????# * /[ #???????????????????????# | | ????# #???????????????????????# | | ????# #???????????????????????# | | ????# #???????????????????????# | | ????# #???????????????????????# | | ????#########+#################???????????????#### | | ##????????# + #??????############# | | #????????# # """"""""" #??????# | | #????????# # s s #??????# | | ########## sss """"""""" #??????# | | + #s #??????# | | ### # @ #??????# | | #?# ] """ """ ###############??????# | | #?# """ """ #????????????????????############# | | #?# """ """ #????????????????????????????????? | | #?# #????????????????????????????????? | | ##?# """ +????????????????????????????????? | | ???+ ] """ #????????????????????????????????? | | ???# """ #????????????????????????????????? | | ???# "" ########?????????????????????????? | | ???# " #?????????????????????????? | | ???# "F [[ ! #?????????????????????????? | | ???+ "" [ #?????????????????????????? | | ???# #?????????????????????????? | | ???# #?????????????????????????? | | ???### ######### #?????????????????????????? | | ?????# #???????# ############+#############+ | | ?????# #???????# | | ?????# #???????# | | ?????#+#/????????# """" """" """ | | ??????? ????? / """" """" ""F"" ? | | ??????? ???? # """" """" "" "" ??? | | ??????? "???""" # """" """" #?????####### | | ??????? ?????"" ?# """" """" ############# | | ?????????????"" ?# """" """" # | | ????????????? ??# """" """" # | +----------------------------------------------------+ Best States ------------- Heat Dissipation 34 Energy Generation 27 Energy Capacity 450 Matter Stores 300 Matter Capacity 300 Sight Range 16 Robot Scan Range 10 Terrain Scan Density 10 Additional Mass Support 6 Resistance: KI 20 Resistance: TH 20 Resistance: EX 20 Resistance: EM 20 Resistance: I 20 Resistance: S 20 Resistance: P 20 Evasion (%) 63 Offensive Hacking 10 Defensive Hacking 10 Item Schematics ----------------- None Robot Schematics ------------------ None Fabricated ------------ Nothing Alien Tech Used ----------------- None Achievements -------------- None Challenges ------------ None Game ------ Seed TerrainImprinterMantle Manual? 0 Play Time 00:40:56 Cumulative 8.7 hours Start 2021.03.30 @ 21:15:13 End 2021.03.30 @ 21:56:15 Sessions 1 Manual Loads 0 Difficulty Adventurer Special Mode None Game No. 7 Rogue 0 Adventurer 7 Explorer 0 Win Type - Total 0 Types 0/0/0/0/0/0/0/0/0 Lore% 17 Gallery% 10 Achievement% 11 Wizard Run 0 Options --------- ASCII 0 Keyboard 0 Movement Mouse Keybinds 0 Fullscreen 1 Font 16/SmallcapsGlow Map View 76x50 Tactical HUD 1 Map Filters NONE Filters NONE Steam 1 RUN: c72d224e-40e3-4313-9cb4-aaef9f46d2c4